Cogmind - Beta 10.2 @@@ ROGUE MODE // 2021.12.06 @ 16:01:31 Player: zhawty Result: Destroyed by as-81360 with Assembled Rifle Performance ------------- Evolutions (1) 500 Regions Visited (3) 600 Robots Destroyed (4) 20 Value Destroyed (64) 64 Prototype IDs (0) 0 Alien Tech Used (0) 0 Bonus (0) 0 TOTAL SCORE: 1184 Bonus ------- None Cogmind --------- Core Integrity 0/400 Matter 300/300 Energy 98/100 System Corruption 0% Temperature Cool (0) Movement Core (50) Location -9/Mines Parts ------- > --- POWER (2) -------- (None) > --- PROPULSION (2) --- (None) > --- UTILITY (2) ------ (None) > --- WEAPON (3) ------- (None) > --- INVENTORY (4) ---- Small Storage Unit Compact Matter Pod (122) System Shield Peak State ------------ > --- POWER ------------ Ion Engine > --- PROPULSION ------- Aluminum Leg Aluminum Leg > --- UTILITY ---------- Small Storage Unit Compact Matter Pod > --- WEAPON ----------- EM Pulse Gun Small Laser Small Laser > --- INVENTORY -------- Compact Wheel Compact Wheel System Shield System Shield System Shield EM Pulse Gun [Rating: 11] Favorites ----------- Power Ion Engine Engine Ion Engine Propulsion Aluminum Leg Leg Aluminum Leg Wheel Compact Wheel Utility System Shield Storage Small Storage Unit Hackware System Shield Weapon Small Laser Energy Gun Small Laser Build | -11 -10 -9 -9 ------- Run | Scr Mat Mat Min Slots Evolved 2 | . . 2 . Power 1 | . . 1 . Propulsion . | . . . . Utility . | . . . . Weapon 1 | . . 1 . Parts Attached 12 | 4 2 2 4 Power 1 | 1 . . . Engine 1 | 1 . . . Core . | . . . . Reactor . | . . . . Propulsion 4 | 2 . . 2 Treads . | . . . . Leg 2 | 2 . . . Wheel 2 | . . . 2 Hover . | . . . . Flight . | . . . . Utility 4 | 1 . 1 2 Device . | . . . . Storage 2 | 1 . 1 . Processor . | . . . . Hackware 2 | . . . 2 Protection . | . . . . Artifact . | . . . . Weapon 3 | . 2 1 . Energy Gun 3 | . 2 1 . Energy Cannon . | . . . . Ballistic Gun . | . . . . Ballistic Cannon . | . . . . Launcher . | . . . . Special Weapon . | . . . . Impact Weapon . | . . . . Slashing Weapon . | . . . . Piercing Weapon . | . . . . Special Melee Weapon . | . . . . Unidentified Prototypes . | . . . . Parts Lost 11 | . . 7 4 Power 1 | . . 1 . Propulsion 4 | . . 2 2 Utility 3 | . . 1 2 Weapon 3 | . . 3 . Highest Loss Streak 7 | . . 7 4 Average Slot Usage (%) 63 | . 85 73 44 Engine 6 | . 14 8 . Leg 12 | . 28 18 . Wheel 9 | . . . 22 Storage 10 | . 14 22 . Hackware 9 | . . . 21 Energy Gun 14 | . 28 24 . Naked Turns 3 | . . . 3 Heaviest Build 14 | 9 11 14 . Greatest Support 32 | 20 20 20 32 Greatest Overweight (x) 1 | . . 1 . Average Overweight (x) . | . . . . Largest Inventory Capacity 6 | 6 6 6 6 Average Capacity 5 | 5 6 6 4 Most Carried 6 | 5 6 6 5 Average Carried 3 | 2 3 5 3 Final Capacity 6 | 6 6 6 4 Final Carried 6 | 5 6 6 3 Class Distribution -------------------- 45% | Mutant 36% | Hacker-Mutant 18% | Gunner Dominant Class ---------------- Mutant | -10/Materials Gunner | -9/Materials Hacker-Mutant | -9/Mines Resources | -11 -10 -9 -9 ----------- Run | Scr Mat Mat Min Matter Collected 395 | 216 36 20 123 Remotely . | . . . . Salvage Created 68 | . 37 31 . Parts 6 | . 1 5 . Haulers Intercepted . | . . . . Recyclers Shooed . | . . . . Parts Field Recycled . | . . . . Retrieved Matter . | . . . . Parts Self-Destructed . | . . . . Prevented . | . . . . Kills | -11 -10 -9 -9 ------- Run | Scr Mat Mat Min Combat Hostiles Destroyed 4 | . 1 3 . Guns 2 | . 1 1 . AOE 2 | . . 2 . Classes Destroyed 2 | . 1 1 . Swarmer 3 | . . 3 . Grunt 1 | . 1 . . Best Kill Streak 3 | . 1 3 . Combat Bots Only 3 | . 1 3 . Max Kills in Single Turn 2 | . 1 2 . Gunslinging . | . . . . Exploded 2 | . . 2 . Melee . | . . . . Uniques/NPCs Destroyed . | . . . . Combat | -11 -10 -9 -9 -------- Run | Scr Mat Mat Min Damage Taken 1010 | . 65 705 240 Core 411 | . . 251 160 Absorbed by Shields . | . . . . Core Remaining (%) 100 | 100 100 . . Volleys Fired 13 | . 8 5 . Largest 3 | . 2 3 . Hottest 120 | . 80 120 . Shots Fired 28 | . 16 12 . Gun 28 | . 16 12 . Cannon . | . . . . Launcher . | . . . . Special . | . . . . Kinetic . | . . . . Thermal 23 | . 16 7 . Explosive . | . . . . Electromagnetic 5 | . . 5 . Robot Hit Streak 3 | . 3 2 . Robot Miss Streak 8 | . 5 8 . Penetration Max . | . . . . Secondary Targets 1 | . . 1 . Max Gunslinging Chain 1 | . . 1 . Shots Hit Robots 11 | . 8 3 . Core Hits 8 | . 2 3 3 Critical Hits . | . . . . Critical Kills . | . . . . Critical Parts Destroyed . | . . . . Melee Attacks . | . . . . Impact . | . . . . Slashing . | . . . . Piercing . | . . . . Sneak Attacks . | . . . . Combat Hostiles . | . . . . Follow-up Attacks . | . . . . Damage Inflicted 240 | . 99 123 18 Guns 133 | . 98 35 . Cannons . | . . . . Explosions 88 | . . 88 . Melee . | . . . . Ramming 19 | . 1 . 18 Kinetic . | . . . . Thermal 198 | . 98 100 . Explosive . | . . . . Electromagnetic 23 | . . 23 . Impact . | . . . . Slashing . | . . . . Piercing . | . . . . Highest Corruption . | . . . . Average Corruption . | . . . . Corruption Purged . | . . . . Overload Shots . | . . . . Overflow Damage . | . . . . Projectiles . | . . . . Explosions . | . . . . Melee . | . . . . Knockbacks . | . . . . Impact . | . . . . Kinetic . | . . . . Secondary . | . . . . Self-Inflicted Damage 8 | . . . 8 Shots . | . . . . Rammed 6 | . 1 . 5 Targets Rammed 7 | . 2 . 5 Kicked 1 | . 1 . . Crushed . | . . . . Highest Temperature 144 | . 144 132 . Average Temperature 68 | . 62 77 . Received Heat Transfer 36 | . 36 . . Siege Activations . | . . . . Robots Corrupted . | . . . . Combat Hostiles . | . . . . Parts Fried . | . . . . Impact Corruptions . | . . . . Robots Melted . | . . . . Combat Hostiles . | . . . . Parts Melted 1 | . . 1 . Heat Transferred 350 | . 225 125 . Parts Sabotaged . | . . . . Parts Stolen . | . . . . Parts Stripped . | . . . . Power Chain Reactions 1 | . . 1 . Missiles Intercepted . | . . . . Alert | -11 -10 -9 -9 ------- Run | Scr Mat Mat Min Peak Influence 74 | . 34 74 5 Initial 14 | . . 14 5 Average 10 | . 9 24 4 Maximum Alert Level . | . . . . Low Security (%) 100 | 100 100 100 100 Level 1 . | . . . . Level 2 . | . . . . Level 3 . | . . . . Level 4 . | . . . . Level 5 . | . . . . High Security . | . . . . Max Security . | . . . . Squads Dispatched 1 | . 1 . . Investigation . | . . . . Extermination . | . . . . Reinforcement 1 | . 1 . . Assault . | . . . . Garrison . | . . . . Intercept . | . . . . Construction Impeded . | . . . . Haulers Reinforced . | . . . . Stealth | -11 -10 -9 -9 --------- Run | Scr Mat Mat Min Distress Signals 2 | . 1 1 . Communications Jammed . | . . . . Distress Signals . | . . . . Times Spotted 31 | . 2 10 19 Peak Tracking Total 15 | . 2 10 15 Tactical Retreats . | . . . . Traps | -11 -10 -9 -9 ------- Run | Scr Mat Mat Min Traps Triggered . | . . . . Indirectly . | . . . . Trap Hack Attempts . | . . . . Triggered . | . . . . Disarmed . | . . . . Reprogrammed . | . . . . Reused . | . . . . Traps Extracted . | . . . . Installed . | . . . . Triggered . | . . . . Machines | -11 -10 -9 -9 ---------- Run | Scr Mat Mat Min Machines Disabled . | . . . . Max in Single Turn . | . . . . Machines Sabotaged . | . . . . Garrisons Compromised . | . . . . Overloaded Fab Kills . | . . . . Fab Network Shutdowns . | . . . . Hacking | -11 -10 -9 -9 --------- Run | Scr Mat Mat Min Machines Accessed 1 | . 1 . . Terminals 1 | . 1 . . Fabricators . | . . . . Repair Stations . | . . . . Recycling Units . | . . . . Scanalyzers . | . . . . Garrison Access . | . . . . Total Hacks 3 | . 3 . . Successful 3 | . 3 . . Failed . | . . . . Catastrophic . | . . . . Database Lockouts . | . . . . Manual . | . . . . Terminals 3 | . 3 . . Fabricators . | . . . . Repair Stations . | . . . . Recycling Units . | . . . . Scanalyzers . | . . . . Garrison Access . | . . . . Terminal Hacks 3 | . 3 . . Locate Traps 1 | . 1 . . Dispatch Records 1 | . 1 . . Reinforcement Status 1 | . 1 . . Fabricator Hacks . | . . . . Repair Station Hacks . | . . . . Recycling Unit Hacks . | . . . . Scanalyzer . | . . . . Garrison Access Hacks . | . . . . Unauthorized Hacks . | . . . . Terminals . | . . . . Fabricators . | . . . . Repair Stations . | . . . . Recycling Units . | . . . . Scanalyzers . | . . . . Garrison Access . | . . . . Data Cores Recovered . | . . . . Used . | . . . . Hacking Detections . | . . . . Full Trace Events . | . . . . Feedback Events . | . . . . Feedback Blocked . | . . . . Robot Schematics Acquired . | . . . . Robots Built . | . . . . Matter . | . . . . Time . | . . . . Total Robot Build Rating . | . . . . Part Schematics Acquired . | . . . . Parts Built . | . . . . Matter . | . . . . Time . | . . . . Total Part Build Rating . | . . . . Parts Repaired . | . . . . Time . | . . . . Parts Recycled . | . . . . Recycled Matter . | . . . . Retrieved Matter . | . . . . Retrieved Components . | . . . . Parts Scanalyzed . | . . . . Part Schematics Acquired . | . . . . Parts Damaged . | . . . . Bothacking | -11 -10 -9 -9 ------------ Run | Scr Mat Mat Min Used RIF Installer . | . . . . Robots Hacked . | . . . . Non-combat . | . . . . Combat . | . . . . Robot Hacks Applied . | . . . . Relay Couplers Released . | . . . . Robots Rewired . | . . . . Allies Hacked . | . . . . Hacks Repelled . | . . . . Allies | -11 -10 -9 -9 -------- Run | Scr Mat Mat Min Total Allies . | . . . . Largest Group . | . . . . Highest-Rated Group . | . . . . Highest-Rated Ally . | . . . . Total Orders . | . . . . Ally Attacks . | . . . . Total Damage . | . . . . Kills . | . . . . Allies Corrupted . | . . . . Allies Melted . | . . . . Intel | -11 -10 -9 -9 ------- Run | Scr Mat Mat Min Robot Analysis Total . | . . . . Derelict Logs Recovered 1 | . . . 1 Drone Launches . | . . . . Drone Recoveries . | . . . . Exploration | -11 -10 -9 -9 ------------- Run | Scr Mat Mat Min Turns Passed 495 | 63 118 125 189 Spaces Moved 390 | 47 73 89 181 Core 35 | 10 . 22 3 Treads . | . . . . Legs 177 | 37 73 67 . Wheels 178 | . . . 178 Hover . | . . . . Flight . | . . . . Fastest Speed 50 | 50 120 100 50 Average Speed 107 | 105 120 115 99 Slowest Speed 120 | 120 120 120 100 Overloaded Moves . | . . . . Propulsion Burnouts . | . . . . Robots Hopped . | . . . . Cave-ins Triggered . | . . . . Exploration Rate (%) 22 | 5 19 15 52 Regions Visited 3 Branch Regions 1 Pre-discovered Areas . | . . . . Known Exits Taken . | . . . . Unknown Exits Taken 3 | 1 1 1 . Scrap Searched 2 | . . . 2 Spaces Dug . | . . . . Terrain Destroyed 8 | . . 8 . Melee . | . . . . Projectile . | . . . . AOE 8 | . . 8 . Terrain Rammed . | . . . . Walls Destroyed . | . . . . Machines Disabled . | . . . . Actions | -11 -10 -9 -9 --------- Run | Scr Mat Mat Min Total 441 | 60 87 103 191 Wait 1 | 1 . . . Move 387 | 46 72 88 181 Hop . | . . . . Pick Up 17 | 9 3 5 . Fast Attach . | . . . . Attach 12 | 4 2 2 4 Detach 1 | . . . 1 Swap . | . . . . Drop 3 | . . 3 . Fire 13 | . 8 5 . Melee . | . . . . Ram 5 | . . . 5 Kick 2 | . 2 . . Crush . | . . . . Escape Stasis . | . . . . Rewire . | . . . . Trap . | . . . . Miscellaneous . | . . . . Route ------- -11/Scrapyard -10/Materials -9/Materials -9/Mines History --------- Turn | Location | Event 39 | -11/Scrapyard | Discovered new exit (range 15) 64 | -11/Scrapyard | Entered Materials 176 | -10/Materials | Discovered new exit (range 4) 182 | -10/Materials | Entered another Materials area 182 | -9/Materials | Evolved 2 slots: Power x1, Weapon x1 292 | -9/Materials | Discovered new exit (range 16) 304 | -9/Materials | Core integrity fell below 50% 307 | -9/Materials | Entered Mines 319 | -9/Mines | Met a Derelict bent on vengeance 337 | -9/Mines | Lost 7 parts (1p2n1u3w) 399 | -9/Mines | Learned Materials emergency access door positions 464 | -9/Mines | Assembled infested the area 469 | -9/Mines | Assisted by a Guerilla fighting off Assembled 495 | -9/Mines | Core integrity fell below 20% 496 | -9/Mines | Destroyed by as-81360 with Assembled Rifle Last Messages --------------- 00486_ LH-CD5(h) destroyed. 00487_ Slammed into as-05112. 00488_ Com. Wheel permanently disabled. 00488_ Destabilizing: Short circuit. 00489_ Slammed into as-42969. 00490_ Acquired 52 matter. 00490_ Acquired 25 matter. 00491_ Broken Com. Wheel destroyed. 00491_ as-24105 destroyed. 00491_ Knocked back. 00493_ as-49394 destroyed. 00493_ as-42969 destroyed. 00493_ Acquired 16 matter. 00493_ Com. Wheel destroyed. 00493_ System Shield destroyed. 00494_ Slammed into as-53551. 00496_ Searching scrap... 00496_ Found Lgt. Cannon. 00496_ Found VTOL Module. 00496_ Found 19 Matter. Map ----- +----------------------------------------------------+ | ???????????????????????????????????????? | | ???????????????????????????????????????? | | ???????????????????????????????????????? | | ???????????????????????????????????????? | | ???????????????????????????????????????? | | ???????????????????????????????????????? | | ???????????????????????????????????????? | | ???????????????????????????????????????? | | ???????????????????????????????????????? | | #??????????????????????????????????????? | | #??????????????????????????????????????? | | #??????????????????????????????????????? | | ##?????????????????????????????????????? | | ##????????????? ?????????????????????? | | ##??????????? ????????????????????? | | #???????????? ????????????????????? | | #????????????? a ???????????????????? | | #?????????????# ##?????????????????? | | # #?????????????# ?????????????????? | | # #??????????????#a ?????????????????? | | # #??????????????# #????????????????? | | #???????????????# ###?????????????? | | ###???????????????# !##????????????? | | #??????????????????# % #????????????? | | #???????????????#???# *=#####a #??? | | #??????????###### ####aa@!%[ #???? | | #??????????# a]#!*$ #???? | | #?????????## a # ## #???? | | ###?????### da a| #? #??? #??? | | = ##????# # #? #?????? #??? | | #????# ##### # #??#??????????? | | ##???# #???# # #?????????????? | | ###?# #???## ### ?????????????? | | ### #????####??# ????????????? | | #??????????### ##???????????? | | ####????????????? #????????????? | | ##???????????????? #????????????? | | #????????????????? #????????????? | | " #????????????????? #????????????? | | ##????????????????? #????????????? | | # #?????????????????? ?????????????? | | ### ##?????????????????? ?????????????? | | ??####?????????????????????????????????? | | ???????????????????????????????????????? | | ???????????????????????????????????????? | | ???????????????????????????????????????? | | ???????????????????????????????????????? | | | | | | | +----------------------------------------------------+ Best States ------------- Heat Dissipation 28 Energy Generation 10 Energy Capacity 250 Matter Stores 330 Matter Capacity 450 Sight Range 16 Terrain Scan Density 10 Evasion (%) 50 Defensive Hacking 20 Item Schematics ----------------- None Robot Schematics ------------------ None Fabricated ------------ Nothing Alien Tech Used ----------------- None Achievements -------------- None Challenges ------------ None Game ------ Seed AdvancedSniperSource Manual? 0 Play Time 00:07:47 Cumulative 6.4 hours Start 2021.12.06 @ 15:52:33 End 2021.12.06 @ 16:01:31 Sessions 1 Manual Loads 0 Difficulty Rogue Special Mode None Game No. 17 Rogue 17 Adventurer 0 Explorer 0 Win Type - Total 0 Types 0/0/0/0/0/0/0/0/0 Lore% 15 Gallery% 15 Achievement% 14 Wizard Run 0 Options --------- ASCII 0 Keyboard 0 Movement Numpad Keybinds 0 Fullscreen 1 Font 18/SmallcapsGlow Map View 76x50 Tactical HUD 1 Map Filters NONE Filters NONE Steam 1 RUN: 31afba03-e3be-421f-b599-b2d04d6700bf